fUSD/lending_fUSD_20240327
["ID","MTS","AMOUNT","RATE_DAILY","PERIOD"]
[320742472,1711543872268,-1436.62,0.00055342,120]
[320742473,1711543872277,-500.0,0.00055342,120]
[320742474,1711543872287,-500.0,0.00055342,120]
[320742475,1711543872297,-783.0,0.00055342,120]
[320742476,1711543872306,-500.0,0.00055342,120]
[320742477,1711543872316,-500.0,0.00055342,120]
[320742478,1711543872326,-500.0,0.00055342,120]
[320742479,1711543872337,-500.0,0.00055342,120]
[320742480,1711543872346,-1016.45,0.00055342,120]
[320742481,1711543872355,-612.71,0.00055342,120]
[320742482,1711543872365,-500.0,0.00055342,120]
[320742483,1711543872375,-545.88,0.00055342,120]
[320742484,1711543872385,-500.0,0.00055342,120]
[320742485,1711543872394,-500.0,0.00055342,120]
[320742486,1711543872403,-877.53,0.00055342,120]
[320742487,1711543872413,-10990.32,0.00055342,120]
[320742488,1711543872423,-500.0,0.00055342,120]
[320742489,1711543872432,-500.0,0.00055342,120]
[320742490,1711543872442,-500.0,0.00055342,120]
[320742491,1711543872452,-500.0,0.00055342,120]
[320742492,1711543872461,-2044.63,0.00055342,120]
[320742493,1711543872471,-500.0,0.00055342,7]
[320742494,1711543872481,-500.0,0.00055342,120]
[320742495,1711543872490,-4311.07,0.00055342,120]
[320742496,1711543872500,-500.0,0.00055342,120]
[320742497,1711543872510,-1347.96,0.00055342,120]
[320742498,1711543872521,-500.0,0.00055342,120]
[320742499,1711543872530,-500.0,0.00055342,120]
[320742500,1711543872540,-500.0,0.00055342,120]
[320742501,1711543872549,-500.0,0.00055342,120]
[320742502,1711543872559,-500.0,0.00055342,120]
[320742503,1711543872569,-500.0,0.00055342,120]
[320742504,1711543872579,-500.0,0.00055342,120]
[320742505,1711543872590,-976.2,0.00055342,120]
[320742506,1711543872600,-1434.29,0.00055342,120]
[320742507,1711543872610,-500.0,0.00055342,120]
[320742508,1711543872619,-839.83,0.00055342,120]
[320742509,1711543872629,-500.0,0.00055342,120]
[320742510,1711543872640,-7133.78,0.00055342,120]
[320742511,1711543872649,-545.62,0.00055342,120]
[320742512,1711543872659,-500.0,0.00055342,120]
[320742513,1711543872669,-500.0,0.00055342,120]
[320742514,1711543872680,-500.0,0.00055342,120]
[320742515,1711543872690,-500.0,0.00055342,120]
[320742516,1711543872700,-500.0,0.00055342,120]
[320742517,1711543872710,-500.0,0.00055342,120]
[320742518,1711543872721,-500.0,0.00055342,120]
[320742519,1711543872731,-500.0,0.00055342,120]
[320742520,1711543872741,-500.0,0.00055342,120]
[320742521,1711543872750,-531.34,0.00055342,120]
[320742522,1711543872762,-5109.09,0.00055342,120]
[320742523,1711543872773,-221.0348339,0.00055342,120]
[320742524,1711543872782,-500.0,0.00055342,120]
[320742525,1711543872792,-7954.08,0.00055342,120]
[320742526,1711543872802,-1365.01,0.00055342,120]
[320742527,1711543872811,-500.0,0.00055342,120]
[320742528,1711543872821,-500.0,0.00055342,120]
[320742529,1711543872832,-3477.52,0.00055342,120]
[320742530,1711543872843,-1944.43,0.00055342,120]
[320742531,1711543872853,-500.0,0.00055342,120]
[320742532,1711543872862,-500.0,0.00055342,120]
[320742533,1711543872872,-22670.34,0.00055342,120]
[320742534,1711543872882,-500.0,0.00055342,120]
[320742535,1711543872892,-500.0,0.00055342,120]
[320742536,1711543872902,-726.92,0.00055342,120]
[320742537,1711543872912,-15912.74,0.00055342,120]
[320742538,1711543872923,-5197.8,0.00055342,120]
[320742539,1711543872933,-500.0,0.00055342,120]
[320742540,1711543872942,-500.0,0.00055342,120]
[320742541,1711543872952,-500.0,0.00055342,120]
[320742542,1711543872962,-500.0,0.00055342,120]
[320742543,1711543872972,-500.0,0.00055342,120]
[320742544,1711543872982,-5025.57,0.00055342,120]
[320742545,1711543872992,-500.0,0.00055342,120]
[320742546,1711543873002,-500.0,0.00055342,120]
[320742547,1711543873011,-3753.0,0.00055342,120]
[320742548,1711543873022,-1032.54,0.00055342,120]
[320742549,1711543873031,-2884.81,0.00055342,120]
[320742550,1711543873041,-525.19,0.00055342,120]
[320742551,1711543873051,-500.0,0.00055342,120]
[320742552,1711543873062,-500.0,0.00055342,120]
[320742553,1711543873072,-500.0,0.00055342,120]
[320742554,1711543873083,-500.0,0.00055342,120]
[320742555,1711543873092,-832.53,0.00055342,120]
[320742556,1711543873102,-1554.43,0.00055342,120]
[320742557,1711543873112,-5602.14,0.00055342,120]
[320742558,1711543873123,-2733.23,0.00055342,120]
[320742559,1711543873132,-500.0,0.00055342,120]
[320742560,1711543873142,-1416.51,0.00055342,120]
[320742561,1711543873152,-510.14,0.00055342,120]
[320742562,1711543873162,-508.12,0.00055342,120]
[320742563,1711543873172,-3295.4,0.00055342,120]
[320742564,1711543873181,-1108.32,0.00055342,120]
[320742565,1711543873191,-2082.72,0.00055342,120]
[320742566,1711543873201,-500.0,0.00055342,120]
[320742567,1711543873211,-3406.52,0.00055342,120]
[320742568,1711543873221,-79296.15,0.00055342,120]
[320742569,1711543873232,-500.0,0.00055342,120]
[320742570,1711543873242,-500.0,0.00055342,120]
[320742571,1711543873253,-21230.92,0.00055342,120]
[320742572,1711543873263,-786.05,0.00055342,120]
[320742573,1711543873274,-575.24,0.00055342,120]
[320742574,1711543873284,-500.0,0.00055342,120]
[320742575,1711543873294,-3470.89,0.00055342,120]
[320742576,1711543873304,-794.6,0.00055342,120]
[320742577,1711543873314,-1436.29,0.00055342,120]
[320742578,1711543873324,-500.0,0.00055342,120]
[320742579,1711543873335,-4270.02,0.00055342,120]
[320742580,1711543873345,-500.0,0.00055342,120]
[320742581,1711543873356,-13832.31,0.00055342,120]
[320742582,1711543873366,-2558.6,0.00055342,120]
[320742583,1711543873375,-500.0,0.00055342,120]
[320742584,1711543873385,-9397.34,0.00055342,120]
[320742585,1711543873395,-1488.59,0.00055342,120]
[320742586,1711543873405,-4828.26,0.00055342,120]
[320742587,1711543873414,-500.0,0.00055342,120]
[320742588,1711543873424,-1008.05,0.00055342,120]
[320742589,1711543873434,-3178.59,0.00055342,120]
[320742590,1711543873445,-544.36,0.00055342,120]
[320742591,1711543873455,-500.0,0.00055342,120]
[320742592,1711543873465,-500.0,0.00055342,120]
[320742593,1711543873476,-3085.25,0.00055342,120]
[320742594,1711543873486,-582.28,0.00055342,120]
[320742595,1711543873496,-751.31,0.00055342,120]
[320742596,1711543873506,-2368.29,0.00055342,120]
[320742597,1711543873516,-1000.0,0.00055342,14]
[320742598,1711543873526,-2699.02,0.00055342,120]
[320742599,1711543873536,-5971.8,0.00055342,120]
[320742600,1711543873545,-3173.89,0.00055342,120]
[320742601,1711543873556,-500.0,0.00055342,120]
[320742602,1711543873566,-500.0,0.00055342,120]
[320742603,1711543873575,-500.0,0.00055342,120]
[320742604,1711543873588,-888.0,0.00055342,120]
[320742605,1711543873598,-500.0,0.00055342,120]
[320742606,1711543873608,-500.0,0.00055342,120]
[320742607,1711543873619,-500.0,0.00055342,120]
[320742608,1711543873629,-5725.46,0.00055342,120]
[320742609,1711543873641,-2196.71,0.00055342,120]
[320742610,1711543873653,-500.0,0.00055342,120]
[320742611,1711543873664,-500.0,0.00055342,120]
[320742612,1711543873674,-775.97,0.00055342,120]
[320742613,1711543873687,-4233.1,0.00055342,120]
[320742614,1711543873698,-500.0,0.00055342,120]
[320742615,1711543873708,-500.0,0.00055342,120]
[320742616,1711543873718,-3326.63,0.00055342,120]
[320742617,1711543873729,-14051.88,0.00055342,120]
[320742618,1711543873739,-500.0,0.00055342,120]
[320742619,1711543873749,-2626.24,0.00055342,120]
[320742620,1711543873759,-5132.44,0.00055342,120]
[320742621,1711543873770,-578.21,0.00055342,120]
[320742622,1711543873781,-1494.67,0.00055342,120]
[320742623,1711543873791,-1284.88,0.00055342,120]
[320742624,1711543873801,-514.80702639,0.00055342,120]
[320742625,1711543873811,-5966.14,0.00055342,120]
[320742626,1711543873821,-500.0,0.00055342,120]
[320742627,1711543873831,-500.0,0.00055342,120]
[320742628,1711543873842,-3897.67,0.00055342,120]
[320742629,1711543873852,-500.0,0.00055342,120]
[320742630,1711543873862,-500.0,0.00055342,120]
[320742631,1711543873873,-500.0,0.00055342,120]
[320742632,1711543873883,-500.0,0.00055342,120]
[320742633,1711543873894,-638.55,0.00055342,120]
[320742634,1711543873903,-2090.88,0.00055342,120]
[320742635,1711543873913,-1510.54,0.00055342,120]
[320742636,1711543873923,-740.92,0.00055342,120]
[320742637,1711543873933,-500.0,0.00055342,120]
[320742638,1711543873943,-500.0,0.00055342,120]
[320742639,1711543873953,-826.27,0.00055342,120]
[320742640,1711543873963,-1852.95,0.00055342,120]
[320742641,1711543873972,-6306.66,0.00055342,120]
[320742642,1711543873982,-500.0,0.00055342,120]
[320742643,1711543873992,-1088.64,0.00055342,120]
[320742644,1711543874002,-5336.71,0.00055342,120]
[320742645,1711543874011,-2495.6,0.00055342,120]
[320742646,1711543874021,-3525.02,0.00055342,120]
[320742647,1711543874031,-3796.34,0.00055342,120]
[320742648,1711543874041,-500.0,0.00055342,120]
[320742649,1711543874051,-500.0,0.00055342,120]
[320742650,1711543874061,-52702.13,0.00055342,120]
[320742651,1711543874070,-500.0,0.00055342,120]
[320742652,1711543874080,-4382.0,0.00055342,120]
[320742653,1711543874091,-6749.09,0.00055342,120]
[320742654,1711543874101,-5317.23,0.00055342,120]
[320742655,1711543874110,-500.0,0.00055342,120]
[320742656,1711543874120,-1020.49,0.00055342,120]
[320742657,1711543874129,-500.0,0.00055342,120]
[320742658,1711543874139,-9670.8,0.00055342,120]
[320742659,1711543874149,-2509.66,0.00055342,120]
[320742660,1711543874158,-500.0,0.00055342,120]
[320742661,1711543874168,-500.0,0.00055342,120]
[320742662,1711543874178,-3800.06,0.00055342,120]
[320742663,1711543874187,-500.0,0.00055342,120]
[320742664,1711543874196,-43977.12,0.00055342,120]
[320742665,1711543874206,-500.0,0.00055342,120]
[320742666,1711543874216,-1033.96,0.00055342,120]
[320742667,1711543874226,-2224.07,0.00055342,120]
[320742668,1711543874236,-6046.1,0.00055342,120]
[320742669,1711543874246,-1400.16,0.00055342,120]
[320742670,1711543874257,-3289.32,0.00055342,120]
[320742671,1711543874268,-3536.01,0.00055342,120]
[320742672,1711543874277,-500.0,0.00055342,120]
[320742673,1711543874287,-500.0,0.00055342,120]
[320742674,1711543874297,-500.0,0.00055342,7]
[320742675,1711543874306,-991.15,0.00055342,120]
[320742676,1711543874316,-500.0,0.00055342,120]
[320742677,1711543874325,-500.0,0.00055342,120]
[320742678,1711543874334,-684.84,0.00055342,120]
[320742679,1711543874344,-500.0,0.00055342,120]
[320742680,1711543874353,-670.41,0.00055342,120]
[320742681,1711543874363,-500.0,0.00055342,120]
[320742682,1711543874373,-688.53,0.00055342,120]
[320742683,1711543874382,-10352.43,0.00055342,120]
[320742684,1711543874392,-8690.1,0.00055342,120]
[320742685,1711543874401,-759.99,0.00055342,120]
[320742686,1711543874412,-5002.55,0.00055342,120]
[320742687,1711543874421,-4330.07,0.00055342,120]
[320742688,1711543874432,-500.0,0.00055342,120]
[320742689,1711543874442,-1051.68,0.00055342,120]
[320742690,1711543874452,-2895.84,0.00055342,120]
[320742691,1711543874462,-2172.19,0.00055342,120]
[320742692,1711543874471,-500.0,0.00055342,120]
[320742693,1711543874481,-500.0,0.00055342,120]
[320742694,1711543874491,-500.0,0.00055342,120]
[320742695,1711543874500,-500.0,0.00055342,120]
[320742696,1711543874510,-2732.75,0.00055342,120]
[320742697,1711543874521,-1796.45,0.00055342,120]
[320742698,1711543874532,-5480.38,0.00055342,120]
[320742699,1711543874542,-500.0,0.00055342,120]
[320742700,1711543874552,-16950.66,0.00055342,120]
[320742701,1711543874561,-500.0,0.00055342,120]
[320742702,1711543874571,-500.0,0.00055342,120]
[320742703,1711543874581,-500.0,0.00055342,120]
[320742704,1711543874595,-5091.09,0.00055342,21]
[320742705,1711543874605,-773.1,0.00055342,120]
[320742706,1711543874614,-3400.43,0.00055342,120]
[320742707,1711543874625,-500.0,0.00055342,120]
[320742708,1711543874635,-500.0,0.00055342,120]
[320742709,1711543874645,-500.0,0.00055342,120]
[320742710,1711543874655,-19292.32,0.00055342,120]
[320742711,1711543874665,-500.0,0.00055342,120]
[320742712,1711543874675,-17160.48,0.00055342,120]
[320742713,1711543874687,-8474.88,0.00055342,120]
[320742714,1711543874696,-649.49,0.00055342,120]
[320742715,1711543874706,-500.0,0.00055342,120]
[320742716,1711543874716,-2690.5,0.00055342,120]
[320742717,1711543874727,-4740.83,0.00055342,120]
[320742718,1711543874737,-938.28,0.00055342,120]
[320742719,1711543874747,-12410.62,0.00055342,120]
[320742720,1711543874757,-4103.23,0.00055342,120]
[320742721,1711543874768,-3583.19,0.00055342,120]
[320742722,1711543874778,-886.33,0.00055342,120]
[320742723,1711543874788,-672.63,0.00055342,120]
[320742724,1711543874799,-4086.57,0.00055342,120]
[320742725,1711543874808,-500.0,0.00055342,120]
[320742726,1711543874818,-500.0,0.00055342,120]
[320742727,1711543874829,-8381.34,0.00055342,120]
[320742728,1711543874842,-512.61,0.00055342,120]
[320742729,1711543874853,-500.0,0.00055342,120]
[320742730,1711543874863,-34309.32,0.00055342,120]
[320742731,1711543874873,-6247.3,0.00055342,120]
[320742732,1711543874883,-1388.52,0.00055342,120]
[320742733,1711543874893,-1173.99,0.00055342,120]
[320742734,1711543874903,-3278.85,0.00055342,120]
[320742735,1711543874912,-8798.58,0.00055342,120]
[320742736,1711543874922,-500.0,0.00055342,120]
[320742737,1711543875099,-500.0,0.00055342,120]
[320742738,1711543875122,-2480.34,0.00055342,120]
[320742739,1711543875145,-500.0,0.00055342,85]
[320742740,1711543875167,-1225.44,0.00055342,120]
[320742741,1711543875183,-500.0,0.00055342,120]
[320742742,1711543875199,-500.0,0.00055342,120]
[320742743,1711543875212,-676.46,0.00055342,120]
[320742744,1711543875232,-1233.43,0.00055342,120]
[320742745,1711543875253,-500.0,0.00055342,120]
[320742746,1711543875267,-2528.31,0.00055342,120]
[320742747,1711543875279,-500.0,0.00055342,120]
[320742748,1711543875295,-500.0,0.00055342,120]
[320742749,1711543875308,-500.0,0.00055342,120]
[320742750,1711543875318,-1659.22,0.00055342,120]
[320742751,1711543875327,-11741.46,0.00055342,120]
[320742752,1711543875339,-1083.78,0.00055342,120]
[320742753,1711543875348,-601.18,0.00055342,120]
[320742754,1711543875370,-2180.01,0.00055342,120]
[320742755,1711543875380,-1845.88,0.00055342,120]
[320742756,1711543875389,-500.0,0.00055342,120]
[320742757,1711543875399,-584.47,0.00055342,120]
[320742758,1711543875409,-8083.93,0.00055342,120]
[320742759,1711543875418,-3516.57,0.00055342,120]
[320742760,1711543875430,-2618.08,0.00055342,120]
[320742761,1711543875440,-3201.11,0.00055342,120]
[320742762,1711543875450,-500.0,0.00055342,120]
[320742763,1711543875460,-500.0,0.00055342,120]
[320742764,1711543875470,-500.0,0.00055342,120]
[320742765,1711543875480,-650.65,0.00055342,120]
[320742766,1711543875490,-500.0,0.00055342,120]
[320742767,1711543875500,-3063.83,0.00055342,120]
[320742768,1711543875510,-500.0,0.00055342,120]
[320742769,1711543875519,-500.0,0.00055342,120]
[320742770,1711543875530,-1350.19,0.00055342,120]
[320742771,1711543875540,-500.0,0.00055342,120]
[320742772,1711543875550,-1927.24,0.00055342,120]
[320742773,1711543875560,-901.69,0.00055342,120]
[320742774,1711543875570,-544.48,0.00055342,120]
[320742775,1711543875579,-2225.83,0.00055342,120]
[320742776,1711543875590,-1141.16,0.00055342,120]
[320742777,1711543875600,-500.0,0.00055342,120]
[320742778,1711543875610,-1139.26,0.00055342,120]
[320742779,1711543875620,-832.09,0.00055342,120]
[320742780,1711543875629,-2166.83,0.00055342,120]
[320742781,1711543875641,-500.0,0.00055342,120]
[320742782,1711543875651,-3156.0,0.00055342,120]
[320742783,1711543875661,-596.08,0.00055342,120]
[320742784,1711543875671,-2931.63,0.00055342,120]
[320742785,1711543875682,-500.0,0.00055342,120]
[320742786,1711543875694,-937.27,0.00055342,120]
[320742787,1711543875704,-666.49,0.00055342,120]
[320742788,1711543875713,-500.0,0.00055342,120]
[320742789,1711543875724,-1458.74,0.00055342,120]
[320742790,1711543875734,-2453.89,0.00055342,120]
[320742791,1711543875743,-190.24451948,0.00055357,120]
[320742792,1711543875753,-166.56049651,0.0005537,120]
[320742793,1711543875762,-166.56049654,0.0005537,120]
[320742794,1711543875773,-156.14444312,0.00055379,120]
[320742795,1711543875783,-705.0,0.000554,30]
[320742796,1711543875792,-200.0,0.00055417,120]
[320742797,1711543875801,-800.0,0.00055417,120]
[320742798,1711543875810,-500.0,0.00055417,120]
[320742799,1711543875821,-200.0,0.00055417,120]
[320742800,1711543875831,-609.98857698,0.0005547,120]
[320742801,1711543875849,-785.83042699,0.00055496,30]
[320742802,1711543875864,-2254.24802014,0.00055496,30]
[320742803,1711543875878,-153.23629697,0.00055496,120]
[320742804,1711543875887,-157.032721,0.00055498,109]
[320742805,1711543875896,-346.065436,0.00055498,106]
[320742806,1711543875906,-500.0,0.000555,120]
[320742807,1711543875916,-500.0,0.000555,120]
[320742808,1711543875925,-500.0,0.000555,120]
[320742809,1711543875935,-500.0,0.000555,120]
[320742810,1711543875944,-500.0,0.000555,120]
[320742811,1711543875954,-500.0,0.000555,120]
[320742812,1711543875963,-500.0,0.000555,120]
[320742813,1711543875972,-500.0,0.000555,120]
[320742814,1711543875982,-305.52,0.000555,120]
[320742815,1711543875992,-609.98857698,0.00055502,120]
[320742816,1711543876002,-190.24451948,0.00055542,120]
[320742817,1711543876012,-507.0,0.00055589,120]
[320742818,1711543876021,-522.2,0.00055616,120]
[320742819,1711543876030,-2000.0,0.00055616,120]
[320742820,1711543876041,-500.0,0.00055616,120]
[320742821,1711543876050,-500.0,0.00055616,120]
[320742822,1711543876060,-500.0,0.00055616,120]
[320742823,1711543876070,-500.0,0.00055616,120]
[320742824,1711543876080,-500.0,0.00055616,120]
[320742825,1711543876092,-500.0,0.00055616,120]
[320742826,1711543876101,-500.0,0.00055616,120]
[320742827,1711543876111,-500.0,0.00055616,120]
[320742828,1711543876120,-585.22,0.00055616,120]
[320742829,1711543876130,-500.0,0.00055616,120]
[320742830,1711543876139,-663.06,0.00055616,120]
[320742831,1711543876148,-500.0,0.00055616,120]
[320742832,1711543876158,-500.0,0.00055616,120]
[320742833,1711543876167,-500.0,0.00055616,120]
[320742834,1711543876176,-587.11,0.00055616,120]
[320742835,1711543876186,-500.0,0.00055616,120]
[320742836,1711543876195,-512.02610653,0.00055616,120]
[320742837,1711543876205,-500.0,0.00055616,120]
[320742838,1711543876215,-500.0,0.00055616,120]
[320742839,1711543876224,-597.38,0.00055616,120]
[320742840,1711543876233,-500.0,0.00055616,120]
[320742841,1711543876243,-616.91,0.00055616,120]
[320742842,1711543876253,-500.0,0.00055616,120]
[320742843,1711543876263,-500.0,0.00055616,120]
[320742844,1711543876273,-500.0,0.00055616,120]
[320742845,1711543876282,-695.95,0.00055616,120]
[320742846,1711543876292,-500.0,0.00055616,120]
[320742847,1711543876302,-500.0,0.00055616,120]
[320742848,1711543876311,-500.0,0.00055616,120]
[320742849,1711543876321,-500.05,0.00055616,120]
[320742850,1711543876331,-500.0,0.00055616,120]
[320742851,1711543876343,-500.0,0.00055616,120]
[320742852,1711543876352,-500.0,0.00055616,120]
[320742853,1711543876362,-500.0,0.00055616,120]
[320742854,1711543876371,-500.0,0.00055616,120]
[320742855,1711543876381,-500.0,0.00055616,120]
[320742856,1711543876391,-500.0,0.00055616,120]
[320742857,1711543876400,-518.1,0.00055616,120]
[320742858,1711543876409,-500.0,0.00055616,120]
[320742859,1711543876419,-500.0,0.00055616,120]
[320742860,1711543876428,-500.0,0.00055616,120]
[320742861,1711543876437,-500.0,0.00055616,120]
[320742862,1711543876447,-500.0,0.00055616,120]
[320742863,1711543876456,-500.0,0.00055616,120]
[320742864,1711543876466,-500.0,0.00055616,120]
[320742865,1711543876476,-526.24,0.00055616,120]
[320742866,1711543876485,-500.0,0.00055616,120]
[320742867,1711543876495,-500.0,0.00055616,120]
[320742868,1711543876505,-500.0,0.00055616,120]
[320742869,1711543876515,-500.0,0.00055616,120]
[320742870,1711543876525,-509.36,0.00055616,120]
[320742871,1711543876535,-499.97357383,0.00055616,120]
[320742872,1711543876545,-500.0,0.00055616,120]
[320742873,1711543876555,-669.48,0.00055616,120]
[320742874,1711543876565,-500.0,0.00055616,120]
[320742875,1711543876575,-500.0,0.00055616,120]
[320742876,1711543876585,-525.09,0.00055616,120]
[320742877,1711543876596,-500.0,0.00055616,120]
[320742878,1711543876606,-500.76,0.00055616,120]
[320742879,1711543876616,-500.0,0.00055616,120]
[320742880,1711543876626,-500.0,0.00055616,120]
[320742881,1711543876635,-500.0,0.00055616,120]
[320742882,1711543876647,-500.0,0.00055616,120]
[320742883,1711543876657,-500.0,0.00055616,120]
[320742884,1711543876668,-516.74,0.00055616,120]
[320742885,1711543876678,-2000.0,0.00055616,120]
[320742886,1711543876690,-500.0,0.00055616,120]
[320742887,1711543876700,-500.0,0.00055616,120]
[320742888,1711543876711,-500.0,0.00055616,120]
[320742889,1711543876721,-500.0,0.00055616,120]
[320742890,1711543876732,-500.0,0.00055616,120]
[320742891,1711543876742,-500.0,0.00055616,120]
[320742892,1711543876751,-500.0,0.00055616,120]
[320742893,1711543876761,-1126.03,0.00055616,120]
[320742894,1711543876770,-620.43,0.00055616,120]
[320742895,1711543876780,-500.0,0.00055616,120]
[320742896,1711543876789,-500.0,0.00055616,120]
[320742897,1711543876798,-1965.76,0.00055616,120]
[320742898,1711543876808,-500.0,0.00055616,120]
[320742899,1711543876818,-921.37,0.00055616,120]
[320742900,1711543876828,-2740.9,0.00055616,120]
[320742901,1711543876838,-500.0,0.00055616,120]
[320742902,1711543876849,-500.0,0.00055616,120]
[320742903,1711543876859,-5471.51,0.00055616,120]
[320742904,1711543876869,-500.0,0.00055616,120]
[320742905,1711543876879,-500.0,0.00055616,120]
[320742906,1711543876888,-884.38,0.00055616,120]
[320742907,1711543876897,-500.0,0.00055616,120]
[320742908,1711543876906,-1170.95,0.00055616,120]
[320742909,1711543876916,-500.0,0.00055616,120]
[320742910,1711543876926,-1057.95,0.00055616,120]
[320742911,1711543876936,-533.04,0.00055616,120]
[320742912,1711543876946,-2051.46,0.00055616,120]
[320742913,1711543876955,-151.0,0.00055616,30]
[320742914,1711543876965,-500.0,0.00055616,120]
[320742915,1711543876975,-500.0,0.00055616,120]
[320742916,1711543876984,-500.0,0.00055616,120]
[320742917,1711543876993,-702.45,0.00055616,120]
[320742918,1711543877003,-545.51,0.00055616,120]
[320742919,1711543877012,-931.2,0.00055616,120]
[320742920,1711543877023,-186.99214325,0.00055616,120]
[320742921,1711543877033,-3285.02,0.00055616,120]
[320742922,1711543877043,-500.0,0.00055616,120]
[320742923,1711543877053,-512.74,0.00055616,120]
[320742924,1711543877063,-500.0,0.00055616,120]
[320742925,1711543877073,-596.37,0.00055616,120]
[320742926,1711543877083,-500.0,0.00055616,120]
[320742927,1711543877095,-500.0,0.00055616,120]
[320742928,1711543877105,-500.0,0.00055616,120]
[320742929,1711543877115,-643.73,0.00055616,120]
[320742930,1711543877125,-500.0,0.00055616,120]
[320742931,1711543877134,-500.0,0.00055616,120]
[320742932,1711543877144,-500.0,0.00055616,120]
[320742933,1711543877153,-503.92,0.00055616,120]
[320742934,1711543877163,-500.0,0.00055616,120]
[320742935,1711543877172,-500.0,0.00055616,120]
[320742936,1711543877182,-604.98,0.00055616,120]
[320742937,1711543877191,-500.0,0.00055616,120]
[320742938,1711543877200,-668.88,0.00055616,120]
[320742939,1711543877209,-1068.26,0.00055616,120]
[320742940,1711543877219,-792.02,0.00055616,120]
[320742941,1711543877228,-956.84,0.00055616,120]
[320742942,1711543877238,-1164.57,0.00055616,120]
[320742943,1711543877247,-500.0,0.00055616,120]
[320742944,1711543877256,-500.0,0.00055616,120]
[320742945,1711543877266,-663.5,0.00055616,120]
[320742946,1711543877276,-500.0,0.00055616,120]
[320742947,1711543877285,-575.0,0.00055616,120]
[320742948,1711543877295,-1061.65,0.00055616,120]
[320742949,1711543877304,-1108.61,0.00055616,120]
[320742950,1711543877313,-865.88,0.00055616,120]
[320742951,1711543877322,-500.0,0.00055616,120]
[320742952,1711543877331,-500.0,0.00055616,120]
[320742953,1711543877342,-500.0,0.00055616,120]
[320742954,1711543877351,-500.0,0.00055616,120]
[320742955,1711543877360,-500.0,0.00055616,120]
[320742956,1711543877370,-500.0,0.00055616,120]
[320742957,1711543877379,-2925.46,0.00055616,120]
[320742958,1711543877389,-500.0,0.00055616,120]
[320742959,1711543877398,-500.0,0.00055616,120]
[320742960,1711543877407,-500.0,0.00055616,120]
[320742961,1711543877417,-798.22,0.00055616,120]
[320742962,1711543877427,-670.39,0.00055616,120]
[320742963,1711543877436,-1050.1,0.00055616,120]
[320742964,1711543877445,-698.77,0.00055616,120]
[320742965,1711543877455,-831.36,0.00055616,60]
[320742966,1711543877463,-500.0,0.00055616,120]
[320742967,1711543877473,-813.47,0.00055616,120]
[320742968,1711543877482,-805.48,0.00055616,120]
[320742969,1711543877492,-895.29,0.00055616,120]
[320742970,1711543877501,-566.16,0.00055616,120]
[320742971,1711543877510,-500.0,0.00055616,120]